{"text_format":"3","workbook":"xlsx","n_sheets":1,"sheets":["Letni časovni list"],"not_rendered":{"defined_names":2},"read":"whole","date_system":"1900"}

{"sheet":"Letni časovni list","index":0,"n_rows":140,"n_cols":12,"rows_kept":140,"merged":[[0,1,1,11],[2,6,2,7],[2,8,2,9],[5,1,5,11],[39,1,39,11],[73,1,73,11],[107,1,107,11]]}
[null,"Časovna kartica zaposlenega"]
[]
[null,"Ime zaposlenega:",null,"E-pošta:",null,null,"Skupno število do danes za leto:"]
[null,"Vodja:",null,"Telefon:",null,null,"Redne ure:",{"$f":"SUM(C16,C27,C38,C50,C61,C72,C84,C95,C106,C118,C129,C140)","v":0},"Število nadur:",{"$f":"SUM(F16,F27,F38,F50,F61,F72,F84,F95,F106,F118,F129,F140)","v":0},"Skupaj:",{"$f":"SUM(H4:J4)","v":0}]
[]
[null,"Januar, februar, marec      Časovna kartica zaposlenega: Dnevno, tedensko, mesečno, letno"]
[null,"Januar","Teden 1","Nadure","Teden 2","Nadure ","Teden 3","Nadure  ","Teden 4","Nadure   ","Teden 5","Nadure    "]
[null,"Ponedeljek"]
[null,"Torek"]
[null,"Sreda"]
[null,"Četrtek"]
[null,"Petek"]
[null,"Sobota"]
[null,"Nedelja"]
[null,"Tedensko skupno število ur",{"$f":"SUBTOTAL(109,Januar[Teden 1])","v":0},{"$f":"SUBTOTAL(109,Januar[Nadure])","v":0},{"$f":"SUBTOTAL(109,Januar[Teden 2])","v":0},{"$f":"SUBTOTAL(109,Januar[[Nadure ]])","v":0},{"$f":"SUBTOTAL(109,Januar[Teden 3])","v":0},{"$f":"SUBTOTAL(109,Januar[[Nadure  ]])","v":0},{"$f":"SUBTOTAL(109,Januar[Teden 4])","v":0},{"$f":"SUBTOTAL(109,Januar[[Nadure   ]])","v":0},{"$f":"SUBTOTAL(109,Januar[Teden 5])","v":0},{"$f":"SUBTOTAL(109,Januar[[Nadure    ]])","v":0}]
[null,"Januar – skupno: Redne ure",{"$f":"SUM(Januar[[#Totals],[Teden 1]],Januar[[#Totals],[Teden 2]],Januar[[#Totals],[Teden 3]],Januar[[#Totals],[Teden 4]],Januar[[#Totals],[Teden 5]])","v":0},"Januar – skupno: Nadure",null,{"$f":"SUM(Januar[[#Totals],[Nadure]],Januar[[#Totals],[Nadure ]],Januar[[#Totals],[Nadure  ]],Januar[[#Totals],[Nadure   ]],Januar[[#Totals],[Nadure    ]])","v":0}]
[]
[null,"Februar","Teden 1","Nadure","Teden 2","Nadure ","Teden 3","Nadure  ","Teden 4","Nadure   ","Teden 5","Nadure    "]
[null,"Ponedeljek"]
[null,"Torek"]
[null,"Sreda"]
[null,"Četrtek"]
[null,"Petek"]
[null,"Sobota"]
[null,"Nedelja"]
[null,"Tedensko skupno število ur",{"$f":"SUBTOTAL(109,Februar[Teden 1])","v":0},{"$f":"SUBTOTAL(109,Februar[Nadure])","v":0},{"$f":"SUBTOTAL(109,Februar[Teden 2])","v":0},{"$f":"SUBTOTAL(109,Februar[[Nadure ]])","v":0},{"$f":"SUBTOTAL(109,Februar[Teden 3])","v":0},{"$f":"SUBTOTAL(109,Februar[[Nadure  ]])","v":0},{"$f":"SUBTOTAL(109,Februar[Teden 4])","v":0},{"$f":"SUBTOTAL(109,Februar[[Nadure   ]])","v":0},{"$f":"SUBTOTAL(109,Februar[Teden 5])","v":0},{"$f":"SUBTOTAL(109,Februar[[Nadure    ]])","v":0}]
[null,"Feb – skupno: Redne ure",{"$f":"SUM(Februar[[#Totals],[Teden 1]],Februar[[#Totals],[Teden 2]],Februar[[#Totals],[Teden 3]],Februar[[#Totals],[Teden 4]],Februar[[#Totals],[Teden 5]])","v":0},"Februar – skupno: Nadure",null,{"$f":"SUM(Februar[[#Totals],[Nadure]],Februar[[#Totals],[Nadure ]],Februar[[#Totals],[Nadure  ]],Februar[[#Totals],[Nadure   ]],Februar[[#Totals],[Nadure    ]])","v":0}]
[]
[null,"Marec","Teden 1","Nadure","Teden 2","Nadure ","Teden 3","Nadure  ","Teden 4","Nadure   ","Teden 5","Nadure    "]
[null,"Ponedeljek"]
[null,"Torek"]
[null,"Sreda"]
[null,"Četrtek"]
[null,"Petek"]
[null,"Sobota"]
[null,"Nedelja"]
[null,"Tedensko skupno število ur",{"$f":"SUBTOTAL(109,Marec[Teden 1])","v":0},{"$f":"SUBTOTAL(109,Marec[Nadure])","v":0},{"$f":"SUBTOTAL(109,Marec[Teden 2])","v":0},{"$f":"SUBTOTAL(109,Marec[[Nadure ]])","v":0},{"$f":"SUBTOTAL(109,Marec[Teden 3])","v":0},{"$f":"SUBTOTAL(109,Marec[[Nadure  ]])","v":0},{"$f":"SUBTOTAL(109,Marec[Teden 4])","v":0},{"$f":"SUBTOTAL(109,Marec[[Nadure   ]])","v":0},{"$f":"SUBTOTAL(109,Marec[Teden 5])","v":0},{"$f":"SUBTOTAL(109,Marec[[Nadure    ]])","v":0}]
[null,"Marec – skupno: Redne ure",{"$f":"SUM(Marec[[#Totals],[Teden 1]],Marec[[#Totals],[Teden 2]],Marec[[#Totals],[Teden 3]],Marec[[#Totals],[Teden 4]],Marec[[#Totals],[Teden 5]])","v":0},"Marec – skupno: Nadure",null,{"$f":"SUM(Marec[[#Totals],[Nadure]],Marec[[#Totals],[Nadure ]],Marec[[#Totals],[Nadure  ]],Marec[[#Totals],[Nadure   ]],Marec[[#Totals],[Nadure    ]])","v":0}]
[]
[null,"April, maj, junij      Časovna kartica zaposlenega: Dnevno, tedensko, mesečno, letno"]
[null,"April","Teden 1","Nadure","Teden 2","Nadure ","Teden 3","Nadure  ","Teden 4","Nadure   ","Teden 5","Nadure    "]
[null,"Ponedeljek"]
[null,"Torek"]
[null,"Sreda"]
[null,"Četrtek"]
[null,"Petek"]
[null,"Sobota"]
[null,"Nedelja"]
[null,"Tedensko skupno število ur",{"$f":"SUBTOTAL(109,April[Teden 1])","v":0},{"$f":"SUBTOTAL(109,April[Nadure])","v":0},{"$f":"SUBTOTAL(109,April[Teden 2])","v":0},{"$f":"SUBTOTAL(109,April[[Nadure ]])","v":0},{"$f":"SUBTOTAL(109,April[Teden 3])","v":0},{"$f":"SUBTOTAL(109,April[[Nadure  ]])","v":0},{"$f":"SUBTOTAL(109,April[Teden 4])","v":0},{"$f":"SUBTOTAL(109,April[[Nadure   ]])","v":0},{"$f":"SUBTOTAL(109,April[Teden 5])","v":0},{"$f":"SUBTOTAL(109,April[[Nadure    ]])","v":0}]
[null,"April – skupno: Redne ure",{"$f":"SUM(April[[#Totals],[Teden 1]],April[[#Totals],[Teden 2]],April[[#Totals],[Teden 3]],April[[#Totals],[Teden 4]],April[[#Totals],[Teden 5]])","v":0},"April – skupno: Nadure",null,{"$f":"SUM(April[[#Totals],[Nadure]],April[[#Totals],[Nadure ]],April[[#Totals],[Nadure  ]],April[[#Totals],[Nadure   ]],April[[#Totals],[Nadure    ]])","v":0}]
[]
[null,"Maj","Teden 1","Nadure","Teden 2","Nadure ","Teden 3","Nadure  ","Teden 4","Nadure   ","Teden 5","Nadure    "]
[null,"Ponedeljek"]
[null,"Torek"]
[null,"Sreda"]
[null,"Četrtek"]
[null,"Petek"]
[null,"Sobota"]
[null,"Nedelja"]
[null,"Tedensko skupno število ur",{"$f":"SUBTOTAL(109,Maj[Teden 1])","v":0},{"$f":"SUBTOTAL(109,Maj[Nadure])","v":0},{"$f":"SUBTOTAL(109,Maj[Teden 2])","v":0},{"$f":"SUBTOTAL(109,Maj[[Nadure ]])","v":0},{"$f":"SUBTOTAL(109,Maj[Teden 3])","v":0},{"$f":"SUBTOTAL(109,Maj[[Nadure  ]])","v":0},{"$f":"SUBTOTAL(109,Maj[Teden 4])","v":0},{"$f":"SUBTOTAL(109,Maj[[Nadure   ]])","v":0},{"$f":"SUBTOTAL(109,Maj[Teden 5])","v":0},{"$f":"SUBTOTAL(109,Maj[[Nadure    ]])","v":0}]
[null,"Maj – skupno: Redne ure",{"$f":"SUM(Maj[[#Totals],[Teden 1]],Maj[[#Totals],[Teden 2]],Maj[[#Totals],[Teden 3]],Maj[[#Totals],[Teden 4]],Maj[[#Totals],[Teden 5]])","v":0},"Maj – skupno: Nadure",null,{"$f":"SUM(Maj[[#Totals],[Nadure]],Maj[[#Totals],[Nadure ]],Maj[[#Totals],[Nadure  ]],Maj[[#Totals],[Nadure   ]],Maj[[#Totals],[Nadure    ]])","v":0}]
[]
[null,"Junij","Teden 1","Nadure","Teden 2","Nadure ","Teden 3","Nadure  ","Teden 4","Nadure   ","Teden 5","Nadure    "]
[null,"Ponedeljek"]
[null,"Torek"]
[null,"Sreda"]
[null,"Četrtek"]
[null,"Petek"]
[null,"Sobota"]
[null,"Nedelja"]
[null,"Tedensko skupno število ur",{"$f":"SUBTOTAL(109,Junij[Teden 1])","v":0},{"$f":"SUBTOTAL(109,Junij[Nadure])","v":0},{"$f":"SUBTOTAL(109,Junij[Teden 2])","v":0},{"$f":"SUBTOTAL(109,Junij[[Nadure ]])","v":0},{"$f":"SUBTOTAL(109,Junij[Teden 3])","v":0},{"$f":"SUBTOTAL(109,Junij[[Nadure  ]])","v":0},{"$f":"SUBTOTAL(109,Junij[Teden 4])","v":0},{"$f":"SUBTOTAL(109,Junij[[Nadure   ]])","v":0},{"$f":"SUBTOTAL(109,Junij[Teden 5])","v":0},{"$f":"SUBTOTAL(109,Junij[[Nadure    ]])","v":0}]
[null,"Junij – skupno: Redne ure",{"$f":"SUM(Junij[[#Totals],[Teden 1]],Junij[[#Totals],[Teden 2]],Junij[[#Totals],[Teden 3]],Junij[[#Totals],[Teden 4]],Junij[[#Totals],[Teden 5]])","v":0},"Junij – skupno: Nadure",null,{"$f":"SUM(Junij[[#Totals],[Nadure]],Junij[[#Totals],[Nadure ]],Junij[[#Totals],[Nadure  ]],Junij[[#Totals],[Nadure   ]],Junij[[#Totals],[Nadure    ]])","v":0}]
[]
[null,"Julij, avgust, september      Časovna kartica zaposlenega: Dnevno, tedensko, mesečno, letno"]
[null,"Julij","Teden 1","Nadure","Teden 2","Nadure ","Teden 3","Nadure  ","Teden 4","Nadure   ","Teden 5","Nadure    "]
[null,"Ponedeljek"]
[null,"Torek"]
[null,"Sreda"]
[null,"Četrtek"]
[null,"Petek"]
[null,"Sobota"]
[null,"Nedelja"]
[null,"Tedensko skupno število ur",{"$f":"SUBTOTAL(109,Julij[Teden 1])","v":0},{"$f":"SUBTOTAL(109,Julij[Nadure])","v":0},{"$f":"SUBTOTAL(109,Julij[Teden 2])","v":0},{"$f":"SUBTOTAL(109,Julij[[Nadure ]])","v":0},{"$f":"SUBTOTAL(109,Julij[Teden 3])","v":0},{"$f":"SUBTOTAL(109,Julij[[Nadure  ]])","v":0},{"$f":"SUBTOTAL(109,Julij[Teden 4])","v":0},{"$f":"SUBTOTAL(109,Julij[[Nadure   ]])","v":0},{"$f":"SUBTOTAL(109,Julij[Teden 5])","v":0},{"$f":"SUBTOTAL(109,Julij[[Nadure    ]])","v":0}]
[null,"Julij – skupno: Redne ure",{"$f":"SUM(Julij[[#Totals],[Teden 1]],Julij[[#Totals],[Teden 2]],Julij[[#Totals],[Teden 3]],Julij[[#Totals],[Teden 4]],Julij[[#Totals],[Teden 5]])","v":0},"Julij – skupno: Nadure",null,{"$f":"SUM(Julij[[#Totals],[Nadure]],Julij[[#Totals],[Nadure ]],Julij[[#Totals],[Nadure  ]],Julij[[#Totals],[Nadure   ]],Julij[[#Totals],[Nadure    ]])","v":0}]
[]
[null,"Avgust","Teden 1","Nadure","Teden 2","Nadure ","Teden 3","Nadure  ","Teden 4","Nadure   ","Teden 5","Nadure    "]
[null,"Ponedeljek"]
[null,"Torek"]
[null,"Sreda"]
[null,"Četrtek"]
[null,"Petek"]
[null,"Sobota"]
[null,"Nedelja"]
[null,"Tedensko skupno število ur",{"$f":"SUBTOTAL(109,Avgust[Teden 1])","v":0},{"$f":"SUBTOTAL(109,Avgust[Nadure])","v":0},{"$f":"SUBTOTAL(109,Avgust[Teden 2])","v":0},{"$f":"SUBTOTAL(109,Avgust[[Nadure ]])","v":0},{"$f":"SUBTOTAL(109,Avgust[Teden 3])","v":0},{"$f":"SUBTOTAL(109,Avgust[[Nadure  ]])","v":0},{"$f":"SUBTOTAL(109,Avgust[Teden 4])","v":0},{"$f":"SUBTOTAL(109,Avgust[[Nadure   ]])","v":0},{"$f":"SUBTOTAL(109,Avgust[Teden 5])","v":0},{"$f":"SUBTOTAL(109,Avgust[[Nadure    ]])","v":0}]
[null,"Avgust – skupno: Redne ure",{"$f":"SUM(Avgust[[#Totals],[Teden 1]],Avgust[[#Totals],[Teden 2]],Avgust[[#Totals],[Teden 3]],Avgust[[#Totals],[Teden 4]],Avgust[[#Totals],[Teden 5]])","v":0},"Avgust – skupno: Nadure",null,{"$f":"SUM(Avgust[[#Totals],[Nadure]],Avgust[[#Totals],[Nadure ]],Avgust[[#Totals],[Nadure  ]],Avgust[[#Totals],[Nadure   ]],Avgust[[#Totals],[Nadure    ]])","v":0}]
[]
[null,"September","Teden 1","Nadure","Teden 2","Nadure ","Teden 3","Nadure  ","Teden 4","Nadure   ","Teden 5","Nadure    "]
[null,"Ponedeljek"]
[null,"Torek"]
[null,"Sreda"]
[null,"Četrtek"]
[null,"Petek"]
[null,"Sobota"]
[null,"Nedelja"]
[null,"Tedensko skupno število ur",{"$f":"SUBTOTAL(109,September[Teden 1])","v":0},{"$f":"SUBTOTAL(109,September[Nadure])","v":0},{"$f":"SUBTOTAL(109,September[Teden 2])","v":0},{"$f":"SUBTOTAL(109,September[[Nadure ]])","v":0},{"$f":"SUBTOTAL(109,September[Teden 3])","v":0},{"$f":"SUBTOTAL(109,September[[Nadure  ]])","v":0},{"$f":"SUBTOTAL(109,September[Teden 4])","v":0},{"$f":"SUBTOTAL(109,September[[Nadure   ]])","v":0},{"$f":"SUBTOTAL(109,September[Teden 5])","v":0},{"$f":"SUBTOTAL(109,September[[Nadure    ]])","v":0}]
[null,"September – skupno: Redne ure",{"$f":"SUM(September[[#Totals],[Teden 1]],September[[#Totals],[Teden 2]],September[[#Totals],[Teden 3]],September[[#Totals],[Teden 4]],September[[#Totals],[Teden 5]])","v":0},"September – skupno: Nadure",null,{"$f":"SUM(September[[#Totals],[Nadure]],September[[#Totals],[Nadure ]],September[[#Totals],[Nadure  ]],September[[#Totals],[Nadure   ]],September[[#Totals],[Nadure    ]])","v":0}]
[]
[null,"Oktober, november, december      Časovna kartica zaposlenega: Dnevno, tedensko, mesečno, letno"]
[null,"Oktober","Teden 1","Nadure","Teden 2","Nadure ","Teden 3","Nadure  ","Teden 4","Nadure   ","Teden 5","Nadure    "]
[null,"Ponedeljek"]
[null,"Torek"]
[null,"Sreda"]
[null,"Četrtek"]
[null,"Petek"]
[null,"Sobota"]
[null,"Nedelja"]
[null,"Tedensko skupno število ur",{"$f":"SUBTOTAL(109,Oktober[Teden 1])","v":0},{"$f":"SUBTOTAL(109,Oktober[Nadure])","v":0},{"$f":"SUBTOTAL(109,Oktober[Teden 2])","v":0},{"$f":"SUBTOTAL(109,Oktober[[Nadure ]])","v":0},{"$f":"SUBTOTAL(109,Oktober[Teden 3])","v":0},{"$f":"SUBTOTAL(109,Oktober[[Nadure  ]])","v":0},{"$f":"SUBTOTAL(109,Oktober[Teden 4])","v":0},{"$f":"SUBTOTAL(109,Oktober[[Nadure   ]])","v":0},{"$f":"SUBTOTAL(109,Oktober[Teden 5])","v":0},{"$f":"SUBTOTAL(109,Oktober[[Nadure    ]])","v":0}]
[null,"Oktober – skupno: Redne ure",{"$f":"SUM(Oktober[[#Totals],[Teden 1]],Oktober[[#Totals],[Teden 2]],Oktober[[#Totals],[Teden 3]],Oktober[[#Totals],[Teden 4]],Oktober[[#Totals],[Teden 5]])","v":0},"Oktober – skupno: Nadure",null,{"$f":"SUM(Oktober[[#Totals],[Nadure]],Oktober[[#Totals],[Nadure ]],Oktober[[#Totals],[Nadure  ]],Oktober[[#Totals],[Nadure   ]],Oktober[[#Totals],[Nadure    ]])","v":0}]
[]
[null,"November","Teden 1","Nadure","Teden 2","Nadure ","Teden 3","Nadure  ","Teden 4","Nadure   ","Teden 5","Nadure    "]
[null,"Ponedeljek"]
[null,"Torek"]
[null,"Sreda"]
[null,"Četrtek"]
[null,"Petek"]
[null,"Sobota"]
[null,"Nedelja"]
[null,"Tedensko skupno število ur",{"$f":"SUBTOTAL(109,November[Teden 1])","v":0},{"$f":"SUBTOTAL(109,November[Nadure])","v":0},{"$f":"SUBTOTAL(109,November[Teden 2])","v":0},{"$f":"SUBTOTAL(109,November[[Nadure ]])","v":0},{"$f":"SUBTOTAL(109,November[Teden 3])","v":0},{"$f":"SUBTOTAL(109,November[[Nadure  ]])","v":0},{"$f":"SUBTOTAL(109,November[Teden 4])","v":0},{"$f":"SUBTOTAL(109,November[[Nadure   ]])","v":0},{"$f":"SUBTOTAL(109,November[Teden 5])","v":0},{"$f":"SUBTOTAL(109,November[[Nadure    ]])","v":0}]
[null,"November – skupno: Redne ure",{"$f":"SUM(November[[#Totals],[Teden 1]],November[[#Totals],[Teden 2]],November[[#Totals],[Teden 3]],November[[#Totals],[Teden 4]],November[[#Totals],[Teden 5]])","v":0},"November – skupno: Nadure",null,{"$f":"SUM(November[[#Totals],[Nadure]],November[[#Totals],[Nadure ]],November[[#Totals],[Nadure  ]],November[[#Totals],[Nadure   ]],November[[#Totals],[Nadure    ]])","v":0}]
[]
[null,"December","Teden 1","Nadure","Teden 2","Nadure ","Teden 3","Nadure  ","Teden 4","Nadure   ","Teden 5","Nadure    "]
[null,"Ponedeljek"]
[null,"Torek"]
[null,"Sreda"]
[null,"Četrtek"]
[null,"Petek"]
[null,"Sobota"]
[null,"Nedelja"]
[null,"Tedensko skupno število ur",{"$f":"SUBTOTAL(109,December[Teden 1])","v":0},{"$f":"SUBTOTAL(109,December[Nadure])","v":0},{"$f":"SUBTOTAL(105,December[Teden 2])","v":0},{"$f":"SUBTOTAL(109,December[[Nadure ]])","v":0},{"$f":"SUBTOTAL(109,December[Teden 3])","v":0},{"$f":"SUBTOTAL(109,December[[Nadure  ]])","v":0},{"$f":"SUBTOTAL(109,December[Teden 4])","v":0},{"$f":"SUBTOTAL(109,December[[Nadure   ]])","v":0},{"$f":"SUBTOTAL(109,December[Teden 5])","v":0},{"$f":"SUBTOTAL(109,December[[Nadure    ]])","v":0}]
[null,"December – skupno: Redne ure",{"$f":"SUM(December[[#Totals],[Teden 1]],December[[#Totals],[Teden 2]],December[[#Totals],[Teden 3]],December[[#Totals],[Teden 4]],December[[#Totals],[Teden 5]])","v":0},"December – skupno: Nadure",null,{"$f":"SUM(December[[#Totals],[Nadure]],December[[#Totals],[Nadure ]],December[[#Totals],[Nadure  ]],December[[#Totals],[Nadure   ]],December[[#Totals],[Nadure    ]])","v":0}]